Cogmind - Beta 15 @@@ ROGUE MODE // 2025.08.04 @ 16:43:01 Player: Mogwok Wargfriend Result: Destroyed by D-53 Grenadier with Mini Grenade Launcher Performance ------------- Evolutions (0) 0 Regions Visited (2) 400 Robots Destroyed (26) 130 Value Destroyed (590) 590 Prototype IDs (0) 0 Alien Tech Used (0) 0 Bonus (0) 0 TOTAL SCORE: 1120 Bonus ------- None Cogmind --------- Core Integrity 0/250 Matter 259/300 Energy 74/100 System Corruption 0% Temperature Cool (0) Movement Rolling (90) Location -10/Mines Parts ------- > --- POWER (1) -------- (None) > --- PROPULSION (2) --- Armored Wheel Armored Wheel > --- UTILITY (2) ------ Heat Sink Medium Storage Unit > --- WEAPON (2) ------- Rocket Launcher > --- INVENTORY (10) --- Reinforced Ion Engine Medium Battery (150) Large Matter Pod (150) Light Armor Plating Sensor Drone Bay Peak State ------------ > --- POWER ------------ Reinforced Ion Engine > --- PROPULSION ------- Armored Wheel Armored Wheel > --- UTILITY ---------- Heat Sink Medium Storage Unit > --- WEAPON ----------- Medium Laser Beam Cannon > --- INVENTORY -------- Reinforced Ion Engine Armored Wheel Armored Wheel Medium Battery Large Matter Pod Light Armor Plating Sensor Drone Bay Medium Laser Beam Cannon Rocket Launcher [Rating: 12] Favorites ----------- Power Reinforced Ion Engine Engine Reinforced Ion Engine Propulsion Armored Wheel Wheel Armored Wheel Utility Heat Sink Device Heat Sink Storage Small Storage Unit Weapon Medium Laser Energy Gun Medium Laser Energy Cannon Beam Cannon Ballistic Gun Light Assault Rifle Launcher Rocket Launcher Build | -11 -10 -10 ------- Run | Yrd Mat Min Slots Evolved . | . . . Power . | . . . Propulsion . | . . . Utility . | . . . Weapon . | . . . Parts Attached 22 | 6 12 4 Power 5 | 1 4 . Engine 5 | 1 4 . Core . | . . . Reactor . | . . . Propulsion 7 | 2 3 2 Treads . | . . . Leg . | . . . Wheel 7 | 2 3 2 Hover . | . . . Flight . | . . . Utility 3 | 1 2 . Device 1 | . 1 . Storage 2 | 1 1 . Processor . | . . . Hackware . | . . . Protection . | . . . Artifact . | . . . Weapon 7 | 2 3 2 Energy Gun 2 | 1 1 . Energy Cannon 3 | . 2 1 Ballistic Gun 1 | 1 . . Ballistic Cannon . | . . . Launcher 1 | . . 1 Special Weapon . | . . . Impact Weapon . | . . . Slashing Weapon . | . . . Piercing Weapon . | . . . Special Melee Weapon . | . . . Unidentified Prototypes . | . . . Parts Lost 9 | . 2 7 Power 2 | . 1 1 Propulsion 3 | . 1 2 Utility . | . . . Weapon 4 | . . 4 Highest Loss Streak 7 | . 2 7 To Critical Strikes . | . . . Average Backups 8 | 2 8 9 Power . | . . 1 Propulsion 2 | . 2 1 Utility 2 | . 2 4 Weapon 2 | . 2 2 Tool/Special . | . . . Unused Backups 15 | . 9 6 Power 2 | . 1 1 Propulsion 3 | . 3 . Utility 7 | . 2 5 Weapon 3 | . 3 . Tool/Special . | . . . Average Slot Usage (%) 97 | . 97 95 Engine 13 | . 13 13 Wheel 27 | . 27 27 Device 12 | . 12 14 Storage 14 | . 14 14 Energy Gun 13 | . 14 12 Energy Cannon 9 | . 8 13 Ballistic Gun 4 | . 5 . Peak Build Rating 12 | 6 11 12 Average Rating 9 | 4 9 11 On Entrance 5 | . 6 11 Naked Turns . | . . . Heaviest Build 26 | 13 26 26 Greatest Support 32 | 26 32 24 Greatest Overweight (x) 2 | . 2 2 Average Overweight (x) . | . . 1 Largest Inventory Capacity 10 | 8 10 10 Average Capacity 8 | 7 8 10 Most Carried 10 | 4 10 10 Average Carried 8 | 2 8 9 Final Capacity 10 | 8 10 10 Final Carried 10 | 4 10 5 Class Distribution -------------------- 100% | Mutant Dominant Class ---------------- Mutant | -10/Materials Mutant | -10/Mines Resources | -11 -10 -10 ----------- Run | Yrd Mat Min Matter Collected 598 | 247 346 5 Remotely . | . . . Salvage Created 891 | . 813 78 Parts 43 | . 42 1 Haulers Intercepted 1 | . 1 . Recyclers Shooed 2 | . 2 . Parts Field Recycled . | . . . Retrieved Matter . | . . . Parts Self-Destructed . | . . . Prevented . | . . . Kills | -11 -10 -10 ------- Run | Yrd Mat Min Combat Hostiles Destroyed 15 | . 13 2 Guns 9 | . 9 . Cannons 4 | . 2 2 AOE 2 | . 2 . Classes Destroyed 9 | . 7 2 Worker 2 | . 2 . Hauler 1 | . 1 . Recycler 4 | . 3 1 Operator 2 | . 2 . Watcher 3 | . 3 . Swarmer 3 | . 3 . Grunt 10 | . 10 . Demolisher 1 | . . 1 Assembled 1 | . . 1 Best Kill Streak 4 | . 4 2 Combat Bots Only 4 | . 4 1 Max Kills in Single Turn 2 | . 2 1 Gunslinging . | . . . Exploded 2 | . 2 . Melee . | . . . Uniques/NPCs Destroyed . | . . . Combat | -11 -10 -10 -------- Run | Yrd Mat Min Hostile Shots Fired 113 | . 72 41 Missed 23 | . 18 5 Hits 90 | . 54 36 Melee 4 | . . 4 Projectile 86 | . 54 32 AOE 14 | . . 14 Part Disruptions 2 | . . 2 Damage Taken 1453 | . 601 852 Core 252 | . 125 127 Absorbed by Shields . | . . . Regen/Repaired (Parts) 74 | . 74 . Core Remaining (%) 100 | 100 . . Volleys Fired 118 | . 98 20 Largest 2 | . 2 2 Hottest 110 | . 110 110 Shots Fired 221 | . 195 26 Gun 166 | . 160 6 Cannon 54 | . 35 19 Launcher 1 | . . 1 Special . | . . . Kinetic 63 | . 63 . Thermal 157 | . 132 25 Explosive 1 | . . 1 Electromagnetic . | . . . Robot Hit Streak 8 | . 8 5 Robot Miss Streak 5 | . 5 2 Penetration Max . | . . . Secondary Targets 1 | . 1 . Max Gunslinging Chain 1 | . 1 . Shots Hit Robots 112 | . 94 18 Core Hits 56 | . 48 8 Critical Kills . | . . . Critical Parts Destroyed . | . . . Critical Strikes 5 | . 5 . Burn 5 | . 5 . Melee Attacks . | . . . Impact . | . . . Slashing . | . . . Piercing . | . . . Sneak Attacks . | . . . Combat Hostiles . | . . . Follow-up Attacks . | . . . Damage Inflicted 1535 | . 1204 331 Guns 907 | . 845 62 Cannons 496 | . 235 261 Explosions 132 | . 124 8 Melee . | . . . Ramming . | . . . Kinetic 251 | . 251 . Thermal 1152 | . 829 323 Explosive 132 | . 124 8 Electromagnetic . | . . . Impact . | . . . Slashing . | . . . Piercing . | . . . Highest Corruption . | . . . Average Corruption . | . . . Corruption Purged . | . . . Corruption Blocked . | . . . Overload Shots . | . . . Overflow Damage . | . . . Projectiles . | . . . Explosions . | . . . Melee . | . . . Knockbacks . | . . . Impact . | . . . Kinetic . | . . . Secondary . | . . . Self-Inflicted Damage 35 | . 35 . Shots 1 | . 1 . Rammed . | . . . Targets Rammed . | . . . Kicked . | . . . Crushed . | . . . Highest Temperature 266 | . 160 266 Average Temperature 52 | . 33 143 Received Heat Transfer 366 | . 246 120 Siege Activations . | . . . Martial Activations . | . . . Shielding Activations . | . . . Robots Disrupted . | . . . Combat Hostiles . | . . . Robots Corrupted . | . . . Combat Hostiles . | . . . Parts Fried . | . . . Impact Corruptions . | . . . Robots Melted . | . . . Combat Hostiles . | . . . Parts Melted 5 | . 5 . Heat Transferred 3330 | . 2590 740 Parts Sabotaged . | . . . Parts Stolen . | . . . Parts Stripped . | . . . Power Chain Reactions . | . . . Alert | -11 -10 -10 ------- Run | Yrd Mat Min Maximum Alert Level . | . . . Low Security (%) 100 | 100 100 100 Level 1 . | . . . Level 2 . | . . . Level 3 . | . . . Level 4 . | . . . Level 5 . | . . . High Security . | . . . Max Security . | . . . Peak Influence 171 | . 171 20 Initial 1 | . . 1 Average 77 | . 91 . Influence Increases 560 | . 522 38 Destroy 0b10 Robot/C 280 | . 260 20 Destroy 0b10 Robot/NC 60 | . 55 5 Destroy Leader 88 | . 78 10 Successful Hack 24 | . 24 . Disable Machine 30 | . 30 . Destroy Structure 33 | . 30 3 Lose Combat Pursuer 45 | . 45 . Influence Decreases 547 | . 516 31 Entered New Map 5 | . . 5 Time Decay 497 | . 496 1 Lost Part 45 | . 20 25 Squads Dispatched 3 | . 3 . Investigation 1 | . 1 . Extermination . | . . . Reinforcement 2 | . 2 . Assault . | . . . Garrison . | . . . Intercept . | . . . Searches Triggered . | . . . Construction Impeded . | . . . Haulers Reinforced . | . . . Active Scanning Responses . | . . . Cargo Convoy Interrupts . | . . . Stealth | -11 -10 -10 --------- Run | Yrd Mat Min Distress Signals 1 | . 1 . Communications Jammed . | . . . Distress Signals . | . . . Times Spotted 36 | . 25 11 Peak Tracking Total 11 | . 4 11 Tactical Retreats 1 | . 1 . Traps | -11 -10 -10 ------- Run | Yrd Mat Min Traps Triggered 1 | . 1 . Indirectly . | . . . Trap Hack Attempts . | . . . Triggered . | . . . Disarmed . | . . . Reprogrammed . | . . . Reused . | . . . Traps Extracted . | . . . Installed . | . . . Triggered . | . . . Machines | -11 -10 -10 ---------- Run | Yrd Mat Min Machines Disabled 2 | . 2 . Max in Single Turn 2 | . 2 . Machines Repaired . | . . . Machines Dismantled . | . . . Machines Sabotaged . | . . . Overloaded Fab Kills . | . . . Hacking | -11 -10 -10 --------- Run | Yrd Mat Min Machines Accessed 7 | . 6 1 Terminals 4 | . 4 . Fabricators . | . . . Repair Stations 1 | . 1 . Recycling Units 1 | . 1 . Scanalyzers . | . . . Garrison Access . | . . . Total Hacks 23 | . 22 1 Successful 13 | . 12 1 Failed 10 | . 10 . Catastrophic 1 | . 1 . Database Lockouts . | . . . Manual 17 | . 17 . Terminals 15 | . 15 . Fabricators . | . . . Repair Stations 3 | . 3 . Recycling Units 4 | . 4 . Scanalyzers . | . . . Garrison Access . | . . . Terminal Hacks 7 | . 6 1 Robot Analysis 5 | . 5 . Open Door 1 | . . 1 Terminal Index 1 | . 1 . Fabricator Hacks . | . . . Repair Station Hacks 2 | . 2 . Scan Component 1 | . 1 . Repair 1 | . 1 . Recycling Unit Hacks 1 | . 1 . Report Inventory 1 | . 1 . Scanalyzer . | . . . Garrison Access Hacks . | . . . Unauthorized Hacks 3 | . 3 . Terminals 2 | . 2 . Botnet 2 | . 2 . Fabricators . | . . . Repair Stations . | . . . Recycling Units 1 | . 1 . Reject 1 | . 1 . Scanalyzers . | . . . Garrison Access . | . . . Data Cores Recovered . | . . . Used . | . . . Hacking Detections 4 | . 4 . Full Trace Events 1 | . 1 . Feedback Events . | . . . Feedback Blocked . | . . . Robot Schematics Acquired . | . . . Robots Built . | . . . Authchips . | . . . Time . | . . . Total Robot Build Rating . | . . . Part Schematics Acquired . | . . . Parts Built . | . . . Authchips . | . . . Time . | . . . Total Part Build Rating . | . . . Parts Repaired 1 | . 1 . Time 32 | . 32 . Parts Recycled . | . . . Recycled Matter . | . . . Retrieved Matter . | . . . Retrieved Components . | . . . Parts Scanalyzed . | . . . Part Schematics Acquired . | . . . Parts Damaged . | . . . Bothacking | -11 -10 -10 ------------ Run | Yrd Mat Min Used RIF Installer . | . . . Robots Hacked . | . . . Non-combat . | . . . Combat . | . . . Robot Hacks Applied . | . . . Relay Couplers Released . | . . . Fabnet Peak Effective % . | . . . Robots Rewired . | . . . Allies Hacked . | . . . Hacks Repelled . | . . . Allies | -11 -10 -10 -------- Run | Yrd Mat Min Total Allies . | . . . Largest Group . | . . . Highest-Rated Group . | . . . Highest-Rated Ally . | . . . Total Orders . | . . . Ally Attacks . | . . . Total Damage . | . . . Kills . | . . . Allies Corrupted . | . . . Allies Melted . | . . . Intel | -11 -10 -10 ------- Run | Yrd Mat Min Active Infowar (turns) . | . . . Robot Analysis Total 5 | . 5 . Derelict Logs Recovered . | . . . Drone Launches . | . . . Drone Recoveries . | . . . Exploration | -11 -10 -10 ------------- Run | Yrd Mat Min Turns Passed 1602 | 66 1365 171 Spaces Moved 1138 | 61 981 96 Core 4 | 4 . . Treads . | . . . Legs . | . . . Wheels 1134 | 57 981 96 Hover . | . . . Flight . | . . . Fastest Speed 50 | 50 90 90 Average Speed 98 | 87 97 117 Slowest Speed 120 | 90 120 120 Overloaded Moves . | . . . Propulsion Burnouts . | . . . Robots Hopped . | . . . Potential Cave-ins . | . . . Cave-ins Triggered . | . . . Exploration Rate (%) 40 | 4 90 27 Regions Visited 2 Branch Regions 1 Pre-discovered Areas . | . . . Known Exits Taken . | . . . Unknown Exits Taken 2 | 1 1 . Scrap Searched . | . . . Spaces Dug . | . . . Terrain Destroyed 36 | . 29 7 Melee . | . . . Projectile . | . . . AOE 36 | . 29 7 Terrain Rammed . | . . . Walls Destroyed . | . . . Machines Disabled . | . . . Actions | -11 -10 -10 --------- Run | Yrd Mat Min Total 1417 | 70 1217 130 Wait 93 | . 89 4 Move 1136 | 60 980 96 Hop . | . . . Pick Up 25 | 4 19 2 Fast Attach 8 | 6 2 . Attach 9 | . 4 5 Detach . | . . . Swap 8 | . 7 1 Drop 20 | . 18 2 Fire 118 | . 98 20 Melee . | . . . Ram . | . . . Kick . | . . . Crush . | . . . Escape Stasis . | . . . Rewire . | . . . Trap . | . . . Miscellaneous . | . . . Route ------- -11/Scrapyard -10/Materials (discovered 4 exits: [*Mat x2] / *Min x2) -10/Mines History --------- Turn | Location | Event 21 | -11/Scrapyard | Discovered new exit (range 15) 67 | -11/Scrapyard | Entered Materials 302 | -10/Materials | Build established: Mutant 386 | -10/Materials | Discovered new exit (range 16) 517 | -10/Materials | Discovered new exit (range 7) 652 | -10/Materials | Discovered new exit (range 8) 817 | -10/Materials | Discovered new exit (range 6) 867 | -10/Materials | Derelicts attacked the area 1379 | -10/Materials | Repaired Arm. Wheel 1432 | -10/Materials | Entered Mines 1522 | -10/Mines | Assembled infested the area 1528 | -10/Mines | Found the Drone Emporium 1540 | -10/Mines | Found Prototype Device 1557 | -10/Mines | Core integrity fell below 50% 1579 | -10/Mines | Core integrity fell below 20% 1603 | -10/Mines | Destroyed by D-53 Grenadier with Mini Grenade Launcher Last Messages --------------- (Burn). 01567_ as-48052 destroyed. 01571_ Med. Laser destroyed. 01572_ as-77232 destroyed. 01572_ R-06 Scavenger collects Heat Sink. 01576_ Acquired 5 matter. 01577_ R-06 Scavenger destroyed. 01580_ as-01427 destroyed. 01581_ U-05 Engineer lays Concrete. 01583_ T2-IQI(g) destroyed. 01583_ SHOP.Sys disabled. 01583_ Machine disabled. 01584_ U-05 Engineer builds a Wall. 01585_ The unstable cave ceiling collapses. 01589_ Arm. Wheel destroyed. 01594_ Beam Cannon destroyed. 01597_ Rnf. Ion Engine destroyed. 01599_ D-53 Grenadier destroyed. 01599_ Beam Cannon destroyed. 01601_ Med. Laser destroyed. Map ----- +----------------------------------------------------+ | ??????????????????????? #??????# ## | | ???????????????????????? #?????# ###### # | | ????????????????????????? #????# #????##### | | ??????????????????????????# #???# #????????? | | ???????????????????????????# #??## ##????????? | | ????????????????????????????# ##??# ##?????????? | | ???????????????????????????## ##?# #??????????? | | ?????????????????????????### ### #??????????? | | ????????????????????????## ## ###????????? | | ????????????????????????# ##???????? | | ?????????????????????????# #???????? | | ?????????????????????????## #???????? | | ??????????????????????????#### #### ? | | ??????????????? ?????????????# #### # ? | | ?????????????? ????????????# # ? | | ??????????????? ???????????# # ? | | ???????????????# ########## ### ## #? | | ????????????????# #?# #? ##? | | ???????????????## #### ######?# ?? ### ##?? | | ???????????????# #?? ##?????# ???##??####??? | | ???????????????# ### #?????# ?????????????? | | ????????????????# # ###???? ?????????????? | | ?????????????????# #????#?????????????? | | ?????????????????#### #??????????????????? | | ????????????????????# ##??????????????????? | | ????????????????????# @ #??????????????????? | | ????????????????????# #??????????????????? | | ????????????????????# #??????????????????? | | ???????????????????### ?????????? ?????? | | ??????????????????##" % ##????? ?????? | | ??????????????????#" ## ????? | | ??????????????????#" d ????? | | ??????????????????#" % u ????? | | ??????????????????# # % #????????? | | ??????????????????##"" ## #! ##????????? | | ???????????????????### ##?? ? ???????????? | | ?????????????????????## # ##???? #????????????? | | ??????????????????????#######?????? #????????????? | | ????????????????????????????????????#????????????? | | ?????????????????????????????????????????????????? | | ?????????????????????????????????????????????????? | | ?????????????????????????????????????????????????? | | ?????????????????????????????????????????????????? | | ?????????????????????????????????????????????????? | | ?????????????????????????????????????????????????? | | ?????????????????????????????????????????????????? | | ?????????????????????????????????????????????????? | | ?????????????????????????????????????????????????? | | ?????????????????????????????????????????????????? | | ?????????????????????????????????????????????????? | +----------------------------------------------------+ Best States ------------- Heat Dissipation 35 Energy Generation 12 Energy Capacity 265 Matter Stores 300 Matter Capacity 300 Sight Range 16 Terrain Scan Density 10 Evasion (%) 42 Item Schematics ----------------- None Robot Schematics ------------------ None Fabricated ------------ Nothing Repaired ---------- Arm. Wheel | 26% | -10/Materials Alien Tech Used ----------------- None Achievements -------------- None Challenges ------------ None Game ------ Seed CloakingAlertDrivehammer Manual? 0 Play Time 00:14:50 Cumulative 276.9 hours Start 2025.08.04 @ 16:29:56 End 2025.08.04 @ 16:43:01 Sessions 1 Manual Loads 0 Difficulty Rogue Special Mode None Game No. 249 Rogue 249 Adventurer 0 Explorer 0 Win Type - Total 1 Types 1/0/0/0/0/0/0/0/0/0 Lore% 64 Gallery% 62 Achievement% 50 Wizard Run 0 Options --------- Layout 2 ASCII 1 Keyboard 1 Movement Numpad Keybinds 0 Fullscreen 2 Font 32/TamsynBold Map View 50x44 Zoom Use 0% Tactical HUD 1 Map Filters NONE Filters NONE Steam 1 RUN: d156d498-1627-4c18-8ee9-f12e1a3802c3